[Event "10th Cherry Blossom Classic 2023"]
[Site "Dulles"]
[Date "2023.05.29"]
[Round "8.6"]
[White "Sriniaiyer, Sudarshan"]
[Black "Druska, Juraj"]
[Result "1/2-1/2"]
[ECO "A43"]
[WhiteElo "2211"]
[BlackElo "2496"]
[Annotator "TA"]
[PlyCount "119"]
[EventDate "2023.05.24"]
[EventType "swiss"]
[EventCountry "USA"]
[SourceTitle "playchess.com"]
[Source "ChessBase"]
[SourceQuality "1"]
[TimeControl "5400+30"]

{[%evp 10,119,69,62,100,92,106,61,74,12,39,-13,0,0,0,0,5,-13,-12,-24,-5,-11,0,-47,-51,-85,-74,-71,-72,-127,-131,-144,-133,-236,-239,-231,-86,-87,-83,-227,-231,-215,-125,-126,-116,-183,-130,-131,0,0,0,-315,-304,-315,-306,-256,0,-258,-70,-70,-70,-808,-790,-766,-720,-713,-681,-631,-618,-599,0,-518,-414,-410,-150,-398,-385,-357,0,0,0,0,0,0,0,0,0,0,0,0,0,0,0,0,0,0,0,0,0,0,0,0,0,0,0,0,0,0,0,0,0,0]} 1. d4 {[%emt 0:01:58]} g6 {[%emt 0:05:27]} 2. c4 {[%emt 0:00:46]} Bg7 {[%emt 0:00:08]} 3. e4 {[%emt 0:00:04]} d6 {[%emt 0:00:11]} 4. Nc3 {[%emt 0:00:06]} c5 {[%emt 0:00:10]} 5. d5 {[%emt 0:01:48]} Bxc3+ {[%emt 0:00:08]} 6. bxc3 {[%emt 0:00:05]} e5 {[%emt 0:00:04] A43: Schmid Benoni.} 7. Bd3 {[%emt 0:03:23]} Nd7 {[%emt 0:00:32]} 8. Be3 {[%emt 0:15:50]} Qe7 {[%emt 0:02:36][%cal Of7f5] [#] White is slightly better.} 9. g4 $146 {[%emt 0:07:44] White is more active.} ({White should try} 9. Ne2 $16) ({Predecessor:} 9. Qc2 h5 10. Nf3 Nh6 11. h3 f6 12. O-O-O Nb6 13. Nh4 Qg7 14. f4 Nf7 15. f5 {0-1 Panda,S (2452)-Li,D (2554) Sunway Formentera op 2nd 2023 (6)}) 9... Kd8 {[%emt 0:43:19][%cal Of7f5]} 10. Qc2 {[%emt 0:07:33]} (10. Nf3 $14) 10... Kc7 {[%emt 0:04:50]} 11. f3 {[%emt 0:05:14]} f5 {[%emt 0:04:50]} 12. exf5 {[%emt 0:13:44]} (12. gxf5 gxf5 13. exf5 Nb6 $14) 12... gxf5 {[%emt 0:00:21]} 13. Bxf5 {[%emt 0:01:30]} Nb6 {[%emt 0:00:30]} 14. Bd3 {[%emt 0:03:20] [#]} e4 $1 {[%emt 0:02:17][%mdl 64] Deflection} 15. fxe4 {[%emt 0:00:40]} Bxg4 {[%emt 0:03:18]} 16. Ne2 {[%emt 0:03:02]} (16. h3 $11 {deserves consideration.} Bd7 17. Nf3) 16... Nf6 $15 {[%emt 0:05:30][%mdl 1024] Black has compensation.} 17. Rf1 {[%emt 0:12:58]} Nfd7 {[%emt 0:04:08]} 18. O-O-O {[%emt 0:02:11]} Ne5 {[%emt 0:01:29]} 19. Rf4 {[%emt 0:00:42]} (19. Bf4 $142) 19... Raf8 {[%emt 0:02:40]} (19... Nbxc4 $6 20. Bxc4 Nxc4 21. Bxc5 $11) 20. Rg1 {[%emt 0:01:41]} h5 {[%emt 0:06:53]} (20... Nbxc4 $6 21. Bxc4 Nxc4 22. Rfxg4 $11 (22. Bxc5 Rxf4 23. Nxf4 Qg5 $17)) 21. Rxf8 {[%emt 0:03:09]} (21. Kb1 $17) 21... Rxf8 $19 {[%emt 0:00:07]} 22. Nf4 {[%emt 0:00:04]} Nbxc4 {[%emt 0:02:26]} (22... Nexc4 23. Bxc4 Nxc4 24. Ng6 Nxe3 25. Qd3 $15) (22... Qh4 $1 $19 {has better winning chances. Strongly threatening ...Kc8.} 23. Ne6+ Bxe6 24. dxe6 Nbxc4 25. Bxc4 Nxc4) 23. Bxc4 $17 {[%emt 0:02:22]} Nxc4 {[%emt 0:00:01]} 24. Qd3 {[%emt 0:00:50]} (24. Ng6 $17 Nxe3 25. Qd3) 24... Ne5 $1 $19 {[%emt 0:02:14]} 25. Qc2 {[%emt 0:00:45]} Re8 {[%emt 0:03:06]} (25... Qh4 $19 {Threatens to win with ...Nc4.} 26. Kb1 Nc4) 26. h3 $17 {[%emt 0:02:42]} Bd7 {[%emt 0:00:04]} 27. Ng6 {[%emt 0:02:02] Repels Nc4} (27. Qe2 $17 {was called for.}) 27... Nxg6 {[%emt 0:00:42]} (27... Qh7 $19 28. Nxe5 Rxe5) 28. Rxg6 {[%emt 0:00:09][%cal Oe3c5]} Bf5 {[%emt 0:03:00]} (28... Bxh3 $6 29. Bxc5 Qxe4 30. Qxe4 Rxe4 31. Bxd6+ Kd7 32. Bb8 $11) (28... Qxe4 $17 29. Qxe4 Rxe4) 29. exf5 $11 {[%emt 0:02:10]} Qxe3+ {[%emt 0:00:01][%mdl 4096] Endgame KQR-KQR} 30. Qd2 $2 {[%emt 0:01:27][%mdl 8192]} (30. Kb2 $11) 30... Qxh3 $19 {[%emt 0:03:28] White must now prevent ...Qf1+.} 31. Re6 {[%emt 0:01:42]} Rg8 {[%emt 0:00:37]} 32. Rg6 {[%emt 0:01:35]} Re8 {[%emt 0:00:14] ...Qf1+ is the strong threat.} 33. Re6 {[%emt 0:00:01]} Rxe6 {[%emt 0:00:58]} (33... Rf8 $1 $19 34. f6 Qf1+ 35. Qd1 Rxf6 36. Qxf1 Rxf1+ 37. Kd2 c4 38. Re7+ Kb6) 34. fxe6 {[%emt 0:00:29] KQ-KQ} h4 $1 {[%emt 0:00:24] And now ...Qg3 would win.} 35. Qg5 {[%emt 0:02:24][%mdl 8192]} (35. a4 $15) 35... Qxc3+ {[%emt 0:00:08]} 36. Kb1 {[%emt 0:00:03]} Qd3+ {[%emt 0:00:09]} 37. Kb2 {[%emt 0:00:31]} Qe2+ {[%emt 0:00:35]} 38. Kc1 {[%emt 0:00:55]} Qe1+ {[%emt 0:00:40]} ({Don't do} 38... Qxa2 39. Qe7+ Kb6 40. Qxd6+ Kb5 41. Qe5 (41. Qd7+ Kb4 $11) 41... Qc4+ 42. Kd2 Qa2+ 43. Ke1 Qb1+ 44. Kf2 $18) 39. Kc2 {[%emt 0:00:03]} Qe2+ {[%emt 0:00:22]} 40. Kc1 {[%emt 0:00:03]} Qc4+ {[%emt 0:01:02]} ({Less strong is} 40... Qxa2 41. Qe7+ Kb6 42. Qxd6+ Kb5 43. Qe5 (43. Qd7+ Kb4 $11) 43... Qc4+ 44. Kd2 Qb4+ 45. Ke2 Qg4+ 46. Kf2 $18) 41. Kb2 {[%emt 0:00:51] [#]} Qb4+ $2 {[%emt 0:00:21]} (41... Qd4+ $1 $19 {and Black stays clearly on top.} 42. Kc2 Qf2+ 43. Kb1 h3 44. Qe7+ Kb6 45. Qd8+ Ka6 46. Qxd6+ b6) 42. Kc2 $2 {[%emt 0:00:12]} (42. Kc1 $17 {only move.}) 42... Qe4+ {[%emt 0:00:11]} 43. Kc1 {[%emt 0:00:06] [#]} Qh7 {[%emt 0:01:03] Wards off Qe7+} (43... Qh1+ $1 $19 44. Kb2 Qh2+ 45. Kb1 h3 46. Qg7+ Kb6) 44. Qf6 $1 $11 {[%emt 0:02:35] Threatening mate with Qf7+. The position is equal.} h3 {[%emt 0:00:02] ( -> ...h2)} 45. e7 {[%emt 0:00:13]} h2 {[%emt 0:00:14]} (45... Qh5 $5 46. Qf8 $8 Qg5+ 47. Kc2 Qg6+ 48. Kc1 Qg5+ 49. Kb1 Qg6+ 50. Kc1 Qg5+ $11) 46. e8=N+ {[%emt 0:00:43]} Kd7 {[%emt 0:00:03]} (46... Kb6 $5 47. Qb2+ $8 Ka6 48. Qa3+ Kb6 49. Qb2+ Ka6 50. Qa3+ Kb6 51. Qb3+ Ka6 52. Qa3+ $11) 47. Qe6+ {[%emt 0:00:33]} Kd8 {[%emt 0:00:01]} 48. Qxd6+ {[%emt 0:00:26]} Kxe8 {[%emt 0:00:01] KQ-KQ} 49. Qb8+ {[%emt 0:00:38]} Kf7 {[%emt 0:00:01]} 50. Qf4+ $1 {[%emt 0:00:26]} Kg8 {[%emt 0:00:51]} (50... Kg6 $5 51. Qe4+ $8 Kh6 52. Qf4+ Kg6 53. Qe4+ Kh6 54. Qf4+ Kg6 $11) 51. Qb8+ {[%emt 0:00:19]} Kg7 {[%emt 0:00:39]} (51... Kf7 $5 52. Qf4+ $8 Kg7 53. Qe5+ Kg6 54. Qe4+ Kh6 55. Qf4+ Kg7 56. Qe5+ Kf8 57. Qb8+ Kg7 58. Qe5+ $11) 52. Qe5+ $1 {[%emt 0:00:10]} Kf7 {[%emt 0:00:31]} (52... Kg6 $5 53. Qe4+ $8 Kh6 54. Qh4+ Kg7 55. Qe7+ Kg8 56. Qe8+ Kg7 57. Qe7+ Kh8 58. Qf8+ Qg8 59. Qh6+ Qh7 60. Qf8+ Qg8 61. Qh6+ Qh7 62. Qf8+ $11) 53. Qf4+ {[%emt 0:00:09]} Kg7 {[%emt 0:01:07]} (53... Kg6 $5 54. Qe4+ $8 Kh6 55. Qf4+ Kg6 56. Qe4+ Kh6 57. Qf4+ Kg6 $11) 54. Qe5+ $1 {[%emt 0:00:25]} Kg6 {[%emt 0:00:09]} (54... Kf7 $5 55. Qf4+ $8 $11) 55. Qe4+ {[%emt 0:00:21]} Kh6 {[%emt 0:00:14]} 56. Qh4+ {[%emt 0:00:23]} Kg7 {[%emt 0:00:05]} (56... Kg6 $5 57. Qe4+ $8 Kh6 58. Qh4+ Kg7 59. Qe7+ Kg8 60. Qe8+ Kg7 61. Qe7+ Kh6 62. Qh4+ $11) 57. Qe7+ {[%emt 0:00:01]} Kh8 {[%emt 0:00:16]} (57... Kg6 $5 58. Qe4+ $8 Kg7 59. Qe7+ Kh6 60. Qh4+ Kg6 61. Qe4+ $11) 58. Qf8+ {[%emt 0:00:10]} Qg8 {[%emt 0:00:01]} 59. Qh6+ {[%emt 0:00:01]} Qh7 {[%emt 0:00:07]} 60. Qf8+ {[%emt 0:00:07] Whites escaped into a draw.   Weighted Error Value: White=0.32/Black=0.48} 1/2-1/2

[Event "10th Cherry Blossom Classic 2023"]
[Site "Dulles"]
[Date "2023.05.29"]
[Round "8.7"]
[White "Senft, Sean"]
[Black "Hilby, Craig"]
[Result "0-1"]
[ECO "E72"]
[WhiteElo "2089"]
[BlackElo "2401"]
[Annotator "TA"]
[PlyCount "122"]
[EventDate "2023.05.24"]
[EventType "swiss"]
[EventCountry "USA"]
[SourceTitle "playchess.com"]
[Source "ChessBase"]
[SourceQuality "1"]
[TimeControl "5400+30"]

{[%evp 13,122,-3,0,-1,60,-1,-1,-12,0,-12,0,0,8,20,0,-8,-16,-19,-27,-16,-10,-43,-44,-54,-56,-70,-33,-20,-29,-55,-50,-48,-51,-49,-42,-46,-32,-64,-64,-80,-80,-80,-64,-80,-80,-80,-80,-80,-80,-80,-80,-80,-80,-85,-85,-85,0,-73,-65,-91,-73,-73,-73,-90,-56,-90,-90,-90,-90,-131,-102,-102,-102,-102,-101,-116,-117,-572,-523,-582,-524,-488,-467,-1078,-1069,-1181,-979,-976,0,-864,-380,-29954,-29954,-12555,-12773,-6099,-5193,-29980,-29981,-29980,-29980,-29982,-29983,-29983,-29984,-29986,-29987,-29987,-29988,-29988,-29989]} 1. d4 {[%emt 0:06:37][%cal Bd2d4,Bd4d5][%mdl 32]} Nf6 {[%emt 0:01:24]} 2. c4 {[%emt 0:00:09]} g6 {[%emt 0:00:03]} 3. Nc3 {[%emt 0:00:08]} Bg7 {[%emt 0:00:04]} 4. g3 {[%emt 0:00:06]} c5 {[%emt 0:02:02]} 5. d5 {[%emt 0:00:55]} e6 {[%emt 0:00:06]} 6. e4 {[%emt 0:01:22]} d6 {[%emt 0:01:26]} 7. Bg2 {[%emt 0:00:59]} O-O {[%emt 0:02:40]} 8. Nge2 {[%emt 0:00:40] E72: King's Indian: 4 e4 d6 5 g3.} Na6 {[%emt 0:03:07]} ({Better is} 8... exd5 $11 9. cxd5 Nbd7) 9. O-O {[%emt 0:08:53]} (9. dxe6 $14 fxe6 10. O-O) 9... exd5 $11 {[%emt 0:01:05]} 10. exd5 {[%emt 0:01:17] The position is equal.} Nc7 {[%emt 0:00:35][%cal Ba6c7,Bc7b5,Bb5c3][%mdl 32]} 11. h3 {[%emt 0:10:06] [#]} b5 $146 {[%emt 0:05:06]} ({Predecessor:} 11... Rb8 12. a4 Re8 13. Be3 Na6 14. Qd2 Nb4 15. Nf4 Nd7 16. Na2 a5 17. Nc3 Ne5 {1-0 Mohannad,F (2330)-Ozalp,B (2015) Gebze op 5th 2014 (7)}) 12. cxb5 {[%emt 0:06:03]} a6 {[%emt 0:00:08]} 13. b6 {[%emt 0:01:38]} Nb5 {[%emt 0:08:08]} 14. a4 {[%emt 0:01:09]} Nxc3 {[%emt 0:00:46]} 15. Nxc3 {[%emt 0:00:23] Black must now prevent a5.} Qxb6 {[%emt 0:00:11]} 16. a5 {[%emt 0:00:19]} Qc7 {[%emt 0:02:01]} 17. Re1 {[%emt 0:07:04]} Rb8 {[%emt 0:07:08]} 18. Re2 {[%emt 0:04:35]} Bd7 {[%emt 0:01:54]} 19. Bg5 {[%emt 0:06:47]} Bb5 {[%emt 0:03:12]} 20. Nxb5 {[%emt 0:09:37]} Rxb5 {[%emt 0:00:08]} 21. Bf1 {[%emt 0:00:28]} Rxa5 {[%emt 0:04:52]} 22. Rxa5 {[%emt 0:02:44]} Qxa5 {[%emt 0:00:04]} 23. Re7 {[%emt 0:03:58]} Qb6 {[%emt 0:08:06]} 24. b3 {[%emt 0:01:36]} h6 {[%emt 0:03:00]} 25. Bxf6 {[%emt 0:03:09]} Bxf6 {[%emt 0:00:02]} 26. Re4 {[%emt 0:03:21]} a5 {[%emt 0:03:59]} 27. Bc4 {[%emt 0:00:37]} Bd4 {[%emt 0:09:29]} 28. Qe2 {[%emt 0:00:48]} Qb4 {[%emt 0:04:54] White is weak on the dark squares} 29. Re8 {[%emt 0:01:10]} Rxe8 {[%emt 0:02:19]} 30. Qxe8+ $17 {[%emt 0:00:06][%mdl 4096] Endgame KQB-KQB} Kg7 {[%emt 0:00:06]} 31. Qe2 {[%emt 0:00:50]} Qc3 {[%emt 0:06:40]} 32. Kg2 {[%emt 0:00:24]} Qc1 {[%emt 0:02:17]} 33. Qf1 {[%emt 0:01:20]} Qc2 {[%emt 0:02:23] Black is much more active.} 34. Qe2 {[%emt 0:00:18]} Qc1 {[%emt 0:02:12]} 35. Qf1 $1 {[%emt 0:00:16]} Qg5 {[%emt 0:00:09]} 36. Qe2 {[%emt 0:00:45]} Qf6 {[%emt 0:01:28]} 37. Qf3 {[%emt 0:00:32]} Qe5 {[%emt 0:00:06]} 38. Qe2 {[%emt 0:00:36]} Kf6 {[%emt 0:01:26]} 39. Qf3+ {[%emt 0:04:41] [#]} Qf5 $1 {[%emt 0:01:05]} 40. Qe2 {[%emt 0:01:22]} g5 {[%emt 0:00:59][%cal Bg6g5,Bg5g4,Bg4f3][%mdl 32]} 41. Qe1 {[%emt 0:05:33]} h5 {[%emt 0:00:53]} 42. Qe2 {[%emt 0:01:15]} g4 {[%emt 0:00:41]} 43. h4 {[%emt 0:01:18]} Kg7 {[%emt 0:03:37]} 44. Kf1 {[%emt 0:01:09] [#]} Qf3 $1 {[%emt 0:02:20]} 45. Qxf3 {[%emt 0:02:30][%mdl 8192]} (45. Qd2 $17) 45... gxf3 {[%emt 0:00:02] KB-KB} 46. Bb5 {[%emt 0:02:25]} Kf6 {[%emt 0:01:08]} 47. Ke1 {[%emt 0:00:48]} Ke5 {[%emt 0:00:57][%cal Oe5e4] aiming for ...Ke4!} 48. Be8 {[%emt 0:00:06]} (48. Bd3 $142 Bc3+ 49. Kd1) 48... f5 $19 {[%emt 0:00:30]} ({Not} 48... Kxd5 49. Bxf7+ Ke5 50. Bxh5 $11) 49. Bc6 {[%emt 0:01:28]} Bc3+ {[%emt 0:03:23]} 50. Kd1 {[%emt 0:00:07]} Bd4 {[%emt 0:01:17]} 51. Ke1 {[%emt 0:00:05]} Ke4 {[%emt 0:00:11]} (51... f4 $142 52. Bb5 fxg3 53. fxg3 Ke4) 52. Bd7 $2 {[%emt 0:01:24]} (52. Bb5 $19 Kxd5 53. Bd3) 52... Kd3 {[%emt 0:00:18]} ({Inferior is} 52... Kxd5 53. Bxf5 Ke5 54. Bd7 $17) 53. Bxf5+ {[%emt 0:00:31]} Kc3 {[%emt 0:00:02][%cal Oc5c4]} 54. Be4 {[%emt 0:00:30]} Kxb3 {[%emt 0:01:45] ( -> ...a4)} 55. Bxf3 {[%emt 0:00:12]} a4 {[%emt 0:00:37][%cal Ba5a4,Ba4a3][%mdl 32] Black mates.} 56. Bd1+ {[%emt 0:00:09]} Kb4 {[%emt 0:00:05]} 57. Bc2 {[%emt 0:00:50]} a3 {[%emt 0:00:05]} 58. Bb1 {[%emt 0:00:15]} Kb3 {[%emt 0:00:05]} 59. Kd1 {[%emt 0:00:42]} Kb2 {[%emt 0:00:11]} 60. Ba2 {[%emt 0:00:14]} Kxa2 {[%emt 0:00:10]} 61. Kc2 {[%emt 0:00:06]} Bxf2 {[%emt 0:00:05] Weighted Error Value: White=0.43/Black=0.25 (precise)} 0-1

[Event "10th Cherry Blossom Classic 2023"]
[Site "Dulles"]
[Date "2023.05.29"]
[Round "8.8"]
[White "Stearman, Josiah"]
[Black "Plotkin, Mark"]
[Result "1-0"]
[ECO "C70"]
[WhiteElo "2385"]
[BlackElo "2341"]
[Annotator "TA"]
[PlyCount "95"]
[EventDate "2023.05.24"]
[EventType "swiss"]
[EventCountry "USA"]
[SourceTitle "playchess.com"]
[Source "ChessBase"]
[SourceQuality "1"]
[TimeControl "5400+30"]

{[%evp 9,95,33,39,35,57,66,63,50,84,35,86,79,88,95,95,90,93,85,85,76,75,83,82,83,84,81,85,91,96,96,96,96,96,96,96,96,96,96,96,72,72,72,72,72,72,72,72,72,76,79,112,113,112,112,146,145,322,305,312,353,352,349,339,338,316,314,274,243,255,237,359,241,427,400,1409,1295,780,1361,892,1086,1296,1166,1318,1042,12846,12839,12833,12183]} 1. e4 {[%emt 0:04:05]} e5 {[%emt 0:03:50]} 2. Nf3 {[%emt 0:00:11]} Nc6 {[%emt 0:00:04]} 3. Bb5 {[%emt 0:00:12]} a6 {[%emt 0:01:04]} 4. Ba4 {[%emt 0:00:05]} Nge7 {[%emt 0:00:07]} 5. c3 {[%emt 0:02:07]} Ng6 {[%emt 0:09:35]} 6. d4 {[%emt 0:01:50] [#] C70: Ruy Lopez: 3...a6 4 Ba4, Norwegian and Delayed Schliemann.} d5 $146 {[%emt 0:03:28]} ({Predecessor:} 6... exd4 7. h4 d3 8. Qxd3 h5 9. Be3 Be7 10. Nbd2 d6 11. O-O-O Bd7 12. Bb3 Nce5 13. Nxe5 Nxe5 {1-0 Svane,F (2600)-Narayanan,S (2661) Jermuk Avagyan Memorial 2023 (5)}) 7. Nxe5 {[%emt 0:13:54]} Ngxe5 {[%emt 0:01:45]} 8. dxe5 {[%emt 0:01:38] White is slightly better.} dxe4 {[%emt 0:00:10]} 9. Qxd8+ {[%emt 0:00:34]} Kxd8 {[%emt 0:00:04]} 10. Bf4 {[%emt 0:03:21]} f5 {[%emt 0:08:38] [#]} 11. exf6 $1 {[%emt 0:09:55]} gxf6 {[%emt 0:00:33]} 12. Nd2 {[%emt 0:00:04]} Bd6 {[%emt 0:03:55]} 13. Bg3 {[%emt 0:06:15]} ({Resist} 13. Bxd6 cxd6 14. f3 (14. Nxe4 Re8 $17) 14... exf3 15. gxf3 Kc7 $14) 13... f5 {[%emt 0:07:29]} 14. Bxc6 {[%emt 0:01:25]} bxc6 {[%emt 0:00:02]} 15. Nc4 {[%emt 0:03:40]} Be6 {[%emt 0:06:23]} 16. Nxd6 {[%emt 0:02:26]} cxd6 {[%emt 0:00:02]} 17. Bxd6 {[%emt 0:00:11]} Bc4 {[%emt 0:00:34]} 18. O-O-O {[%emt 0:01:15]} Rg8 {[%emt 0:01:16]} 19. b3 {[%emt 0:02:49]} Bd3 {[%emt 0:01:32]} 20. g3 {[%emt 0:00:19]} Kd7 {[%emt 0:00:18]} 21. Bf4 {[%emt 0:00:06]} c5 {[%emt 0:00:28]} 22. c4 {[%emt 0:00:21]} Kc6 {[%emt 0:00:20]} 23. Rhe1 {[%emt 0:03:32][%cal Od1d3]} Rad8 {[%emt 0:05:52]} 24. h4 {[%emt 0:00:12]} h5 {[%emt 0:00:11]} 25. Kb2 {[%emt 0:00:33]} Rd7 {[%emt 0:00:36]} 26. Kc3 {[%emt 0:00:09]} Rgd8 {[%emt 0:00:57]} 27. Bg5 {[%emt 0:00:32]} Ra8 {[%emt 0:01:36]} 28. Rd2 {[%emt 0:00:40]} a5 {[%emt 0:00:34] [#]} 29. f3 $1 {[%emt 0:02:02]} a4 {[%emt 0:07:21] [#]} (29... Rf8 30. Rf2) 30. fxe4 $1 {[%emt 0:00:39]} fxe4 {[%emt 0:02:04]} 31. Rf2 {[%emt 0:00:06] Prevents Rf7} axb3 {[%emt 0:00:04]} 32. axb3 {[%emt 0:00:12]} Rd6 $2 {[%emt 0:00:59] A mistake that costs the game.} (32... Raa7 $16 {was called for.} 33. Rd1 Rf7) 33. Be3 $18 {[%emt 0:00:41]} Rg6 {[%emt 0:01:40]} 34. Rf5 {[%emt 0:00:27][%csl LRc5,LRh5]} Ra5 {[%emt 0:00:08]} 35. Rxh5 {[%emt 0:03:44]} Rxg3 {[%emt 0:01:42]} 36. Rg1 {[%emt 0:00:06] Prevents Rg2} Rxg1 {[%emt 0:01:54]} (36... Rxe3 $2 {leads to mate.} 37. Rg6+ Kd7 38. Rh7+ Ke8 39. Rg8#) 37. Bxg1 {[%emt 0:00:02][%cal Oh5c5][%mdl 4096] Endgame KRB-KRB} Be2 {[%emt 0:00:34]} 38. Rh6+ {[%emt 0:00:39]} Kd7 {[%emt 0:00:16]} 39. Kb2 {[%emt 0:00:08] Wards off Ra1} Bd1 {[%emt 0:02:38]} (39... Ke7 $142 40. h5 Kf7) 40. Be3 {[%emt 0:01:24] h5 would be deadly.} Bf3 $2 {[%emt 0:01:01]} (40... Ke7 {keeps fighting.} 41. Rc6 Kd7) 41. h5 {[%emt 0:02:34][%cal Bh4h5,Bh5h6,Bh6h7][%mdl 32]} Ke7 {[%emt 0:01:11]} (41... Ra8 $142 42. Bxc5 Bg4 43. Rd6+ Kc7) 42. Rh7+ {[%emt 0:00:43] White is clearly winning.} Kf6 {[%emt 0:00:11]} 43. h6 {[%emt 0:00:09]} Ra8 {[%emt 0:00:32] Wards off Rc7} 44. Rc7 {[%emt 0:00:17]} Rd8 {[%emt 0:00:08]} 45. Bxc5 {[%emt 0:01:14] aiming for Be7+.} Kg6 {[%emt 0:00:28]} 46. Be3 {[%emt 0:00:06] Black must now prevent Rg7+.} Rd3 {[%emt 0:00:42]} 47. h7 {[%emt 0:00:27]} Rd8 {[%emt 0:00:06] [#]} 48. Bd4 $1 {[%emt 0:00:10][%mdl 576] Deflection, Promotion.   Weighted Error Value: White=0.05 (flawless) /Black=0.21 (precise)} 1-0

[Event "10th Cherry Blossom Classic 2023"]
[Site "Dulles"]
[Date "2023.05.29"]
[Round "8.9"]
[White "Girsh, Daniel"]
[Black "Williams, Justus"]
[Result "1-0"]
[ECO "E51"]
[WhiteElo "2123"]
[BlackElo "2396"]
[Annotator "TA"]
[PlyCount "73"]
[EventDate "2023.05.24"]
[EventType "swiss"]
[EventCountry "USA"]
[SourceTitle "playchess.com"]
[Source "ChessBase"]
[SourceQuality "1"]
[TimeControl "5400+30"]

{[%evp 17,73,37,32,31,46,17,53,40,86,86,102,80,96,26,36,33,82,119,103,96,121,112,175,168,149,89,98,35,208,185,258,279,310,257,282,305,1019,1019,1535,1497,1793,1018,971,945,859,505,463,177,177,183,306,296,1100,843,1976,1953,1812,1810]} 1. d4 {[%emt 0:00:02]} Nf6 {[%emt 0:03:12]} 2. c4 {[%emt 0:00:07]} e6 {[%emt 0:00:41]} 3. Nc3 {[%emt 0:00:08]} Bb4 {[%emt 0:00:32]} 4. e3 {[%emt 0:00:29]} O-O {[%emt 0:00:59]} 5. Bd3 {[%emt 0:00:15]} d5 {[%emt 0:00:52]} 6. a3 {[%emt 0:00:21]} Bd6 {[%emt 0:03:25]} 7. Nf3 {[%emt 0:00:57]} dxc4 {[%emt 0:00:26]} 8. Bxc4 {[%emt 0:00:08]} Nc6 {[%emt 0:00:15]} 9. O-O {[%emt 0:01:36]} a6 {[%emt 0:00:21]} 10. Qc2 {[%emt 0:13:58] E51: Nimzo-Indian: Rubinstein: 4...0-0 5 Nf3 d5.} h6 {[%emt 0:02:48]} 11. b4 {[%emt 0:04:02]} Re8 {[%emt 0:02:41]} 12. Bb2 {[%emt 0:03:35] [#] White is slightly better.} Bd7 $146 {[%emt 0:07:33]} (12... e5 $14) ({Predecessor:} 12... b5 13. Bb3 Bb7 14. Rfd1 Ne7 15. e4 e5 16. dxe5 Nh7 17. Rd3 Ng6 18. exd6 cxd6 {1-0 De los Santos Coello,J-Vazquez Gallardo,M Novatos Mex18 N 1 2018}) 13. Rad1 $16 {[%emt 0:03:46]} Qe7 {[%emt 0:03:26]} 14. Rfe1 {[%emt 0:10:33] Hoping for e4.} e5 {[%emt 0:14:25]} 15. h3 {[%emt 0:17:34] Against Bg4. White is much more active.} ({White should play} 15. Nd5 $1 $16 {[%cal Rd5e7]} Nxd5 16. Bxd5) 15... e4 {[%emt 0:05:00]} 16. Nd2 {[%emt 0:00:16]} Kh8 {[%emt 0:05:53]} (16... Nd8 $14 {is more appropriate.}) 17. f3 {[%emt 0:03:43]} exf3 {[%emt 0:01:54]} 18. Nxf3 {[%emt 0:00:55]} Bg3 {[%emt 0:01:32]} 19. Re2 {[%emt 0:01:43]} Rad8 {[%emt 0:02:15]} (19... Qf8 $16) 20. e4 $1 $18 {[%emt 0:02:08]} Nh5 {[%emt 0:02:38]} 21. Nd5 {[%emt 0:00:24]} (21. e5 $142 $1) 21... Qf8 $16 {[%emt 0:00:20]} 22. e5 {[%emt 0:02:56]} (22. Rf1 $16) 22... Rc8 $2 {[%emt 0:00:28] This costs Black the game.} ({Black should try} 22... Be6 $1 $14 23. Ne3 (23. Nxc7 Bxc4 24. Qxc4 Nxe5 $15 {[%mdl 64] Pin}) 23... Bxc4 24. Qxc4 Qg8) 23. Ne3 {[%emt 0:06:40]} b5 {[%emt 0:06:17]} (23... Ne7 $142 24. d5 Nf4) 24. Ba2 $1 $18 {[%emt 0:01:39]} a5 {[%emt 0:02:02]} (24... Nf4 $2 25. Red2 $18) 25. Nf5 {[%emt 0:01:20] Black must now prevent N3h4.} axb4 {[%emt 0:03:42] [#]} 26. Nxh6 $1 {[%emt 0:03:15]} Nd8 {[%emt 0:00:28] [#]} (26... gxh6 27. e6 fxe6) 27. Ng5 $1 {[%emt 0:00:20][%csl Gg5][%cal Rc2h7]} g6 {[%emt 0:01:57]} (27... f5 28. exf6) 28. Nhxf7+ {[%emt 0:00:29]} Nxf7 {[%emt 0:00:44]} 29. Nxf7+ {[%emt 0:00:46]} Kh7 {[%emt 0:01:17]} 30. e6 {[%emt 0:02:16]} Nf4 {[%emt 0:00:23]} 31. Re3 {[%emt 0:00:13]} (31. exd7 $2 Rxe2 32. Ng5+ (32. dxc8=R $2 Qxc8 33. Ng5+ Kh6 $19) 32... Kh6 $19) 31... Qxf7 {[%emt 0:00:52]} 32. exf7 {[%emt 0:12:59]} (32. exd7 Qxd7 33. Rxg3 Ne2+ 34. Kh2 Nxg3 35. Kxg3 Qd6+ 36. Kf2 Qh2 $17) (32. d5 c6 33. exd7 {[%mdl 64] Discovered Attack} Qxd7 34. dxc6 (34. Rxg3 Ne2+ 35. Kh2 Qd6 $16 {[%mdl 64] Pin})) 32... Rxe3 {[%emt 0:00:03]} 33. Qc5 {[%emt 0:00:39]} (33. axb4 $2 Re2 $19) 33... Re2 {[%emt 0:13:59] [#]} (33... b3 $142 34. Bxb3 (34. f8=N+ Rxf8 35. Qxf8 Re2 $11) 34... Ne2+ 35. Kf1 Bd6) 34. Bd5 $1 {[%emt 0:00:06]} (34. f8=B {leads to mate.} Rxg2+ 35. Kh1 Rh2+ 36. Kg1 Ne2+ 37. Kf1 Bxh3#) (34. f8=N+ $2 Rxf8 35. Bd5 Rfe8 $19) (34. f8=Q Rxg2+ 35. Kh1 Rh2+ 36. Kg1 Ne2+ 37. Kf1 Bxh3#) 34... Rf2 $2 {[%emt 0:00:05]} (34... Nxd5 35. Qxd5 (35. f8=R Rxf8 36. Qxf8 Nf4 $11) 35... Rxb2) 35. Qe7 {[%emt 0:01:02][%csl Ge7][%cal Rf7f8] White is clearly winning.} ({And not} 35. f8=R Ne2+ 36. Kh1 Rcxf8 37. Qe7+ (37. Qxb4 $2 {is a self mate.} Rf1+ {[%mdl 64] Back Rank} 38. Rxf1 Rxf1#) 37... Kh8 $11) 35... Ne2+ {[%emt 0:03:22]} 36. Kh1 {[%emt 0:00:06]} Kh6 {[%emt 0:00:08]} 37. Bf3 {[%emt 0:00:25] A fantastic game!   Weighted Error Value: White=0.70/Black=0.39} 1-0